fUST/lending_fUST_20250812
["ID","MTS","AMOUNT","RATE_DAILY","PERIOD"]
[378764616,1755005459223,-460.0,0.00018581,2]
[378764617,1755005459233,-286.62739854,0.00018581,2]
[378764618,1755005459242,-460.0,0.00018581,2]
[378764619,1755005459251,-460.0,0.00018581,2]
[378764620,1755005459264,-460.0,0.00018581,2]
[378764621,1755005459273,-460.0,0.00018581,2]
[378764622,1755005459283,-460.0,0.00018581,2]
[378764623,1755005459292,-460.0,0.00018581,2]
[378764624,1755005459302,-202.73987689,0.00018581,2]
[378764625,1755005459311,-460.0,0.00018581,2]
[378764626,1755005459320,-460.0,0.00018581,2]
[378764627,1755005459330,-854.22,0.00018581,2]
[378764628,1755005459339,-460.0,0.00018581,2]
[378764629,1755005459348,-460.0,0.00018581,2]
[378764630,1755005459358,-460.0,0.00018581,2]
[378764631,1755005459368,-460.0,0.00018581,2]
[378764632,1755005459378,-460.0,0.00018581,2]
[378764633,1755005459387,-460.0,0.00018581,2]
[378764634,1755005459396,-460.0,0.00018581,2]
[378764635,1755005459405,-460.0,0.00018581,2]
[378764636,1755005459414,-460.0,0.00018581,2]
[378764637,1755005459424,-460.0,0.00018581,2]
[378764638,1755005459433,-460.0,0.00018581,2]
[378764639,1755005459442,-462.35695127,0.00018581,2]
[378764640,1755005459452,-460.0,0.00018581,2]
[378764641,1755005459461,-374.0690305,0.00018581,2]
[378764642,1755005459587,-85.9309695,0.00018581,2]
[378764643,1755005459596,-404.78885794,0.00018581,2]
[378764644,1755005459608,-55.21114206,0.00018581,2]
[378764645,1755005459622,-267.42212361,0.00018581,2]
[378764646,1755005459632,-453.0616643,0.00018581,2]
[378764647,1755005459641,-460.0,0.00018581,2]
[378764648,1755005459650,-56.24690525,0.00018581,2]
[378764649,1755005460193,-460.0,0.00017748,2]
[378764650,1755005460203,-151.0,0.00017761,2]
[378764651,1755005460213,-460.0,0.00018022,2]
[378764652,1755005460223,-403.75309475,0.00018581,2]
[378764653,1755005460233,-460.0,0.00018581,2]
[378764654,1755005460243,-225.24690525,0.00018581,2]
[378764655,1755005460258,-234.75309475,0.00018581,2]
[378764656,1755005460268,-460.0,0.00018581,2]
[378764657,1755005460278,-460.0,0.00018581,2]
[378764658,1755005460289,-460.0,0.00018581,2]
[378764659,1755005460299,-561.2484717,0.00018581,2]
[378764660,1755005460321,-114.0615283,0.00018581,2]
[378764661,1755005460331,-460.0,0.00018581,2]
[378764662,1755005460341,-310.57559323,0.00018581,2]
[378764663,1755005460740,-460.0,0.00017748,2]
[378764664,1755005460750,-549.34,0.00018022,2]
[378764665,1755005460766,-460.0,0.00018296,2]
[378764666,1755005460776,-438.54,0.0001857,2]
[378764667,1755005460786,-149.42440677,0.00018581,2]
[378764668,1755005460796,-460.0,0.00018581,2]
[378764669,1755005460806,-818.72,0.00018581,2]
[378764670,1755005460816,-460.0,0.00018581,2]
[378764671,1755005460825,-460.0,0.00018581,2]
[378764672,1755005460835,-235.1053639,0.00018581,2]
[378764673,1755005460846,-460.0,0.00018581,2]
[378764674,1755005460855,-460.0,0.00018581,2]
[378764675,1755005460865,-460.0,0.00018581,2]
[378764676,1755005460875,-460.0,0.00018581,2]
[378764677,1755005460885,-460.0,0.00018581,2]
[378764678,1755005460895,-460.0,0.00018581,2]
[378764679,1755005460904,-460.0,0.00018581,2]
[378764680,1755005460914,-460.0,0.00018581,2]
[378764681,1755005460923,-460.0,0.00018581,2]
[378764682,1755005460934,-460.0,0.00018581,2]
[378764683,1755005460943,-460.0,0.00018581,2]
[378764684,1755005460953,-460.0,0.00018581,2]
[378764685,1755005460963,-589.28222678,0.00018581,2]
[378764686,1755005460972,-460.0,0.00018581,2]
[378764687,1755005460982,-804.23,0.00018581,2]
[378764688,1755005460992,-203.8,0.00018581,2]
[378764689,1755005461125,-684.84,0.00018581,2]
[378764690,1755005461136,-351.08901453,0.00018581,2]
[378764691,1755005462267,6030.34104223,0.00016786,2]
[378764692,1755005462308,1084.87794577,0.00016786,2]
[378764693,1755005483559,-299.78626005,0.00017549,2]
[378764694,1755005485585,-422.50983545,0.00017549,2]
[378764695,1755005488054,-211.32322472,0.00017549,2]
[378764696,1755005489271,476.53505707,0.00031041,120]
[378764697,1755005489766,-166.62762435,0.00017549,2]
[378764698,1755005492238,-294.2860022,0.00017549,2]
[378764699,1755005495684,-288.51152678,0.00017549,2]
[378764700,1755005499954,-74.19800196,0.00017549,2]
[378764701,1755005513375,369.786389,0.00013699,2]
[378764702,1755005777074,-246.66470153,0.00017472,2]
[378764703,1755005780135,-243.49126746,0.00017472,2]
[378764704,1755005782185,-151.16580636,0.00017472,2]
[378764705,1755005784421,-169.98956831,0.00017472,2]
[378764706,1755005786552,-152.0332552,0.00017472,2]
[378764707,1755005788045,-382.04836869,0.00017472,2]
[378764708,1755005790021,-234.28565764,0.00017472,2]
[378764709,1755005795305,-198.34500326,0.00017472,2]
[378764710,1755005798466,-185.98539516,0.00017472,2]
[378764711,1755005799984,-102.31619331,0.00017472,2]
[378764713,1755006136721,-197.68380669,0.0001712,2]
[378764714,1755006138132,-212.73734973,0.0001712,2]
[378764715,1755006141326,-121.45148467,0.0001712,2]
[378764716,1755006141348,-50.7595276,0.00017205,2]
[378764717,1755006143818,-165.71385135,0.00017205,2]
[378764718,1755006146662,-49.4629416,0.00017205,2]
[378764720,1755006286485,304.70168,0.00016716,2]
[378764722,1755006332511,8240.63398523,0.00016716,2]
[378764723,1755006332535,10000.0,0.00016716,2]
[378764724,1755006332559,6659.36601477,0.00016716,2]
[378764725,1755006425467,-254.31827841,0.00017647,2]
[378764726,1755006425491,-1200.0,0.00017648,2]
[378764727,1755006425515,-239.0,0.00017648,2]
[378764728,1755006425541,-300.0,0.00017648,2]
[378764729,1755006425566,-18088.86355407,0.00017649,2]
[378764730,1755006425590,-3339.31,0.00017737,3]
[378764731,1755006425613,-1669.65,0.00017737,3]
[378764732,1755006425637,-834.83,0.00017737,3]
[378764733,1755006425661,-417.41,0.00017737,3]
[378764734,1755006425686,-208.71,0.00017737,3]
[378764735,1755006425711,-626.13,0.00017737,3]
[378764736,1755006425734,-50000.0,0.00017738,2]
[378764737,1755006425757,-500.0,0.00017738,2]
[378764738,1755006425781,-500.0,0.00017738,2]
[378764739,1755006425805,-500.0,0.00017738,2]
[378764740,1755006425828,-425.01385916,0.00017738,2]
[378764741,1755006425853,-500.0,0.00017738,2]
[378764742,1755006425878,-500.0,0.00017738,2]
[378764743,1755006425904,-161.09017789,0.00017738,2]
[378764744,1755006425929,-500.0,0.00017738,2]
[378764745,1755006425955,-180.32465523,0.00017738,2]
[378764746,1755006425992,-500.0,0.00017738,2]
[378764747,1755006426015,-500.0,0.00017738,2]
[378764748,1755006426040,-500.0,0.00017738,2]
[378764749,1755006426065,-500.0,0.00017738,2]
[378764750,1755006426089,-500.0,0.00017738,2]
[378764751,1755006426113,-500.0,0.00017738,2]
[378764752,1755006426138,-500.0,0.00017738,2]
[378764753,1755006426162,-500.0,0.00017738,2]
[378764754,1755006426186,-500.0,0.00017738,2]
[378764755,1755006426389,-500.0,0.00017738,2]
[378764756,1755006426414,-500.0,0.00017738,2]
[378764757,1755006426438,-336.20532916,0.00017738,2]
[378764758,1755006426463,-500.0,0.00017738,2]
[378764759,1755006426488,-500.0,0.00017738,2]
[378764760,1755006426513,-349.98610774,0.00017738,2]
[378764761,1755006426538,-500.0,0.00017738,2]
[378764762,1755006426563,-500.0,0.00017738,2]
[378764763,1755006426587,-614.246,0.00017738,2]
[378764764,1755006426610,-500.0,0.00017738,2]
[378764765,1755006426635,-500.0,0.00017738,2]
[378764766,1755006426659,-500.0,0.00017738,2]
[378764767,1755006426682,-500.0,0.00017738,2]
[378764768,1755006426707,-500.0,0.00017738,2]
[378764769,1755006426732,-500.0,0.00017738,2]
[378764770,1755006426757,-500.0,0.00017738,2]
[378764771,1755006426781,-500.0,0.00017738,2]
[378764772,1755006426811,-500.0,0.00017738,2]
[378764773,1755006426836,-500.0,0.00017738,2]
[378764774,1755006426862,-500.0,0.00017738,2]
[378764775,1755006426887,-500.0,0.00017738,2]
[378764776,1755006426915,-500.0,0.00017738,2]
[378764777,1755006426939,-180.23606651,0.00017738,2]
[378764778,1755006426963,-500.0,0.00017738,2]
[378764779,1755006426988,-500.0,0.00017738,2]
[378764780,1755006427012,-500.0,0.00017738,2]
[378764781,1755006427037,-500.0,0.00017738,2]
[378764782,1755006427065,-500.0,0.00017738,2]
[378764783,1755006427091,-500.0,0.00017738,2]
[378764784,1755006427115,-500.0,0.00017738,2]
[378764785,1755006427140,-500.0,0.00017738,2]
[378764786,1755006427164,-500.0,0.00017738,2]
[378764787,1755006427188,-500.0,0.00017738,2]
[378764788,1755006427213,-500.0,0.00017738,2]
[378764789,1755006427251,-500.0,0.00017738,2]
[378764790,1755006427277,-500.0,0.00017738,2]
[378764791,1755006427309,-500.0,0.00017738,2]
[378764792,1755006427335,-500.0,0.00017738,2]
[378764793,1755006427361,-500.0,0.00017738,2]
[378764794,1755006427387,-500.0,0.00017738,2]
[378764795,1755006427416,-500.0,0.00017738,2]
[378764796,1755006427442,-500.0,0.00017738,2]
[378764797,1755006427469,-500.0,0.00017738,2]
[378764798,1755006427495,-478.40776027,0.00017738,2]
[378764799,1755006427521,-500.0,0.00017738,2]
[378764800,1755006427548,-500.0,0.00017738,2]
[378764801,1755006427577,-500.0,0.00017738,2]
[378764802,1755006427604,-500.0,0.00017738,2]
[378764803,1755006427632,-500.0,0.00017738,2]
[378764804,1755006427659,-500.0,0.00017738,2]
[378764805,1755006427686,-500.0,0.00017738,2]
[378764806,1755006427713,-500.0,0.00017738,2]
[378764807,1755006427740,-500.0,0.00017738,2]
[378764808,1755006427766,-500.0,0.00017738,2]
[378764809,1755006427794,-500.0,0.00017738,2]
[378764810,1755006427824,-500.0,0.00017738,2]
[378764811,1755006427849,-500.0,0.00017738,2]
[378764812,1755006427875,-500.0,0.00017738,2]
[378764813,1755006427903,-500.0,0.00017738,2]
[378764814,1755006427933,-444.50724091,0.00017738,2]
[378764815,1755006427957,-500.0,0.00017738,2]
[378764816,1755006427983,-500.0,0.00017738,2]
[378764817,1755006428008,-500.0,0.00017738,2]
[378764818,1755006428032,-500.0,0.00017738,2]
[378764819,1755006428058,-500.0,0.00017738,2]
[378764820,1755006428082,-500.0,0.00017738,2]
[378764821,1755006428106,-500.0,0.00017738,2]
[378764822,1755006428130,-500.0,0.00017738,2]
[378764823,1755006428154,-500.0,0.00017738,2]
[378764824,1755006428178,-500.0,0.00017738,2]
[378764825,1755006428202,-500.0,0.00017738,2]
[378764826,1755006428226,-650.0,0.00017738,2]
[378764827,1755006428249,-263.73714041,0.00017738,2]
[378764828,1755006428272,-500.0,0.00017739,2]
[378764829,1755006472434,200.0,0.0003,120]
[378764830,1755006516923,460.0,0.00030136,120]
[378764831,1755006525191,371.739724,0.00013699,2]
[378764833,1755006586056,200399.79686069,0.0001764,2]
[378764869,1755006632022,-300.0,0.00017746,2]
[378764871,1755006632034,-1200.0,0.00017746,2]
[378764873,1755006632044,-460.0,0.00017747,2]
[378764874,1755006632054,-148.305163,0.0001775,2]
[378764875,1755006632081,-351.694837,0.0001775,2]
[378764876,1755006632091,-198.73730413,0.0001775,2]
[378764877,1755006632100,-45074.88195679,0.00017756,2]
[378764882,1755006632288,-460.0,0.00017756,2]
[378764883,1755006632299,-460.0,0.00017756,2]
[378764884,1755006632308,-500.0,0.00017773,2]
[378764885,1755006632318,-500.0,0.00017773,2]
[378764886,1755006632327,-612.12284503,0.00017773,2]
[378764887,1755006632337,-500.0,0.00017773,2]
[378764888,1755006632346,-500.0,0.00017773,2]
[378764889,1755006632355,-500.0,0.00017773,2]
[378764890,1755006632364,-500.0,0.00017773,2]
[378764891,1755006632374,-800.0,0.0001792,2]
[378764892,1755006632383,-10000.0,0.00017931,2]
[378764893,1755006632393,-200.0,0.00018001,2]
[378764894,1755006632403,-200.0,0.00018001,2]
[378764895,1755006632413,-200.0,0.00018001,2]
[378764896,1755006632424,-200.0,0.00018001,2]
[378764897,1755006632433,-500.0,0.00018006,2]
[378764898,1755006632443,-500.0,0.00018006,2]
[378764899,1755006632452,-189.76244907,0.00018023,2]
[378764900,1755006632461,-800.0,0.00018024,2]
[378764901,1755006632472,-460.0,0.0001803,2]
[378764902,1755006632483,-460.0,0.0001803,2]
[378764903,1755006632492,-151.0,0.00018295,2]
[378764904,1755006632501,-489.45452389,0.00018304,2]
[378764905,1755006632511,-1000.0,0.00018321,2]
[378764906,1755006632521,-506.76482346,0.00018321,2]
[378764907,1755006632531,-242.97626793,0.00018321,2]
[378764908,1755006632541,-500.0,0.00018321,2]
[378764909,1755006632551,-152.92996,0.00018321,2]
[378764910,1755006632561,-1000.0,0.00018554,2]
[378764911,1755006632571,-435.17563623,0.00018554,2]
[378764912,1755006632582,-151.0,0.00018567,2]
[378764913,1755006632593,-151.0,0.00018567,2]
[378764914,1755006632603,-151.0,0.00018569,2]
[378764915,1755006632612,-151.0,0.00018569,2]
[378764916,1755006632622,-151.0,0.00018572,2]
[378764917,1755006632632,-500.0,0.00018572,2]
[378764918,1755006632641,-538.8873453,0.00018577,2]
[378764919,1755006632651,-151.0,0.0001858,2]
[378764920,1755006632660,-151.0,0.0001858,2]
[378764921,1755006632669,-1268.0,0.0001858,2]
[378764922,1755006632680,-2012.0,0.0001858,2]
[378764923,1755006632690,-500.0,0.0001858,2]
[378764924,1755006632699,-151.0,0.0001858,2]
[378764925,1755006632709,-500.0,0.0001858,2]
[378764926,1755006632722,-151.0,0.0001858,2]
[378764927,1755006632731,-151.0,0.0001858,2]
[378764928,1755006632741,-151.0,0.0001858,2]
[378764929,1755006632752,-151.0,0.0001858,2]
[378764930,1755006632762,-151.0,0.0001858,2]
[378764931,1755006632777,-500.0,0.0001858,2]
[378764932,1755006632788,-151.0,0.000186,2]
[378764933,1755006632803,-151.0,0.000186,2]
[378764934,1755006632820,-151.0,0.00018621,2]
[378764935,1755006632831,-151.0,0.00018621,2]
[378764936,1755006632841,-151.0,0.000187,2]
[378764937,1755006632851,-160.0,0.00018717,3]
[378764938,1755006632861,-151.0,0.000188,2]
[378764939,1755006632871,-151.0,0.000188,2]
[378764940,1755006632880,-262.469669,0.00018843,2]
[378764941,1755006632890,-151.0,0.00018843,2]
[378764942,1755006632899,-151.0,0.00018843,2]
[378764943,1755006632908,-151.0,0.00018844,2]
[378764944,1755006632918,-151.0,0.00018844,2]
[378764945,1755006632927,-500.0,0.00018846,2]
[378764946,1755006632935,-151.0,0.00018853,2]
[378764947,1755006632945,-151.0,0.00018853,2]
[378764948,1755006632955,-151.0,0.00018853,2]
[378764949,1755006632965,-151.0,0.00018853,2]
[378764950,1755006632979,-486.951994,0.00018853,2]
[378764951,1755006632988,-486.951994,0.00018853,2]
[378764952,1755006632997,-201.04585953,0.00018854,2]
[378764953,1755006633006,-151.0,0.00018854,2]
[378764954,1755006633016,-1268.0,0.00018854,2]
[378764955,1755006633026,-2012.0,0.00018854,2]
[378764956,1755006633036,-500.0,0.00018854,2]
[378764957,1755006633046,-151.0,0.00018854,2]
[378764958,1755006633056,-500.0,0.00018854,2]
[378764959,1755006633066,-153.67592904,0.00018854,2]
[378764960,1755006633075,-151.0,0.00018854,2]
[378764961,1755006633085,-248.24546373,0.00018854,2]
[378764962,1755006633095,-500.0,0.00018854,2]
[378764963,1755006633106,-171.726374,0.00018855,2]
[378764964,1755006633116,-277.867342,0.00018855,2]
[378764965,1755006633126,-191.188601,0.00018855,2]
[378764966,1755006633135,-152.771382,0.00018855,2]
[378764967,1755006633145,-151.0,0.00018855,2]
[378764968,1755006633155,-151.0,0.00018855,2]
[378764969,1755006633164,-1500.0,0.00018868,2]
[378764970,1755006633174,-151.0,0.000189,2]
[378764971,1755006633184,-1010.12412373,0.000189,2]
[378764972,1755006633193,-14911.11181396,0.000189,2]
[378764973,1755006633207,-18866.0469812,0.000189,2]
[378764974,1755006633216,-4650.90538917,0.000189,2]
[378764975,1755006633232,-1010.12412373,0.00018925,2]
[378764976,1755006633241,-275.1,0.00018946,2]
[378764977,1755006633251,-1010.12412373,0.0001895,2]
[378764978,1755006633260,-500.0,0.00018973,2]
[378764979,1755006633270,-500.0,0.00018973,2]
[378764980,1755006633280,-500.0,0.00018973,2]
[378764981,1755006633289,-307.03355461,0.00018973,2]
[378764982,1755006633299,-500.0,0.00018973,2]
[378764983,1755006633309,-1010.12412373,0.00018975,2]
[378764984,1755006633319,-528.03329096,0.00018985,2]
[378764985,1755006633328,-12673.43806534,0.00018986,2]
[378764986,1755006633338,-160.0,0.00018986,2]
[378764987,1755006633348,-215.52532928,0.00018986,2]
[378764988,1755006633358,-160.0,0.00018986,2]
[378764989,1755006633367,-843.25559725,0.00018986,2]
[378764990,1755006633377,-160.0,0.00018986,2]
[378764991,1755006633386,-417.15472785,0.00018986,2]
[378764992,1755006633396,-160.0,0.00018986,2]
[378764993,1755006633406,-160.0,0.00018986,2]
[378764994,1755006633416,-160.0,0.00018986,2]
[378764995,1755006633426,-290.716907,0.00018986,2]
[378764996,1755006633435,-254.382689,0.00018986,2]
[378764997,1755006633444,-160.0,0.00018987,2]
[378764998,1755006633454,-461.76100612,0.00018987,2]
[378764999,1755006633464,-160.0,0.00018987,2]
[378765000,1755006633477,-232.0176383,0.00018987,2]
[378765001,1755006633487,-216.70963917,0.00018987,2]
[378765002,1755006633497,-590.18495407,0.00018999,2]
[378765003,1755006633507,-1300.0,0.00019,3]
[378765004,1755006633517,-10868.68155896,0.00019,2]
[378765005,1755006633528,-151.0,0.00019,2]
[378765006,1755006633538,-151.0,0.00019,2]
[378765007,1755006633548,-151.0,0.00019,2]
[378765008,1755006633558,-151.0,0.00019,2]
[378765009,1755006633568,-154.538039,0.00019,2]
[378765010,1755006633577,-35778.34942364,0.00019,2]
[378765020,1755006637835,-500.0,0.00017755,2]
[378765021,1755006637847,-500.0,0.00017755,2]
[378765022,1755006637860,-251.52634894,0.00017755,2]
[378765023,1755006637872,-164.26752892,0.00017755,2]
[378765024,1755006637884,-537.35614769,0.00017755,2]
[378765025,1755006637897,-242.24845183,0.00017755,2]
[378765026,1755006637910,-500.0,0.00017755,2]
[378765027,1755006637923,-500.0,0.00017755,2]
[378765028,1755006637934,-409.45072409,0.00017755,2]
[378765029,1755006637944,-53615.60322589,0.00019,2]
[378765030,1755006637959,-32732.93778693,0.00019,2]
[378765031,1755006637977,-3303.1600718,0.00019,2]
[378765032,1755006637991,-2465.80067433,0.00019,2]
[378765033,1755006638007,-128057.2512389,0.00019,2]
[378765054,1755006641445,-67.89831317,0.00019,2]
[378765055,1755006641457,-8782.6751207,0.00019,2]
[378765056,1755006641473,-393.32513956,0.00019,2]
[378765133,1755006646100,-529.84568927,0.00019,2]
[378765135,1755006700287,10000.0,0.0001774,2]
[378765136,1755007340723,460.0,0.00020992,60]
[378765137,1755007467697,157.0,0.000301,120]
[378765139,1755007670725,353.152737,0.00013699,2]
[378765192,1755007834000,-2183.31810187,0.0001775,2]
[378765193,1755007834011,-212.16119157,0.0001776,2]
[378765194,1755007834022,-480.0,0.0001776,2]
[378765195,1755007834032,-3360.54145606,0.00017761,2]
[378765196,1755007834097,-3089.569997,0.00017761,2]
[378765205,1755007838041,-18449.88854694,0.00017761,2]
[378765206,1755007838051,-2264.10087164,0.00017805,2]
[378765207,1755007838060,-2347.87260389,0.0001786,2]
[378765208,1755007838068,-2434.74389024,0.00017915,2]
[378765209,1755007838078,-2524.82941417,0.0001797,2]
[378765210,1755007838087,-2618.2481025,0.00018025,2]
[378765211,1755007838101,-160.0,0.00018078,3]
[378765212,1755007838111,-2715.12328229,0.0001808,2]
[378765213,1755007838120,-200.0,0.00018115,2]
[378765214,1755007838129,-200.0,0.00018115,2]
[378765215,1755007838139,-200.0,0.00018115,2]
[378765216,1755007838148,-200.0,0.00018115,2]
[378765217,1755007838157,-2815.58284374,0.00018135,2]
[378765218,1755007838166,-2919.75940895,0.0001819,2]
[378765219,1755007838175,-2439.63554228,0.00018245,2]
[378765220,1755007838184,-412.0,0.00018531,2]
[378765221,1755007838193,-412.0,0.00018561,2]
[378765222,1755007838203,-412.0,0.00018562,2]
[378765223,1755007838211,-412.0,0.00018603,2]
[378765224,1755007838221,-412.0,0.00018687,2]
[378765225,1755007838233,-160.0,0.00018717,4]
[378765226,1755007838242,-412.0,0.00018759,2]
[378765227,1755007838252,-413.12946785,0.00018788,2]
[378765228,1755007838261,-412.0,0.00018789,2]
[378765229,1755007838270,-1335.18443366,0.00018799,2]
[378765230,1755007838279,-412.0,0.00018811,2]
[378765231,1755007838292,-412.0,0.00018843,2]
[378765232,1755007838301,-151.0,0.00018889,2]
[378765233,1755007838310,-151.0,0.00018889,2]
[378765234,1755007838319,-151.0,0.00018889,2]
[378765235,1755007838328,-151.0,0.00018889,2]
[378765236,1755007838338,-151.0,0.00018889,2]
[378765237,1755007838347,-151.0,0.00018889,2]
[378765238,1755007838357,-151.0,0.00018889,2]
[378765239,1755007838367,-151.0,0.00018889,2]
[378765240,1755007838376,-151.0,0.00018889,2]
[378765241,1755007838386,-151.0,0.00018889,2]
[378765242,1755007838395,-151.0,0.00018889,2]
[378765243,1755007838404,-151.0,0.00018889,2]
[378765244,1755007838413,-151.0,0.00018889,2]
[378765245,1755007838423,-151.0,0.00018889,2]
[378765246,1755007838432,-151.0,0.00018889,2]
[378765247,1755007838441,-151.0,0.00018889,2]
[378765248,1755007838451,-151.0,0.00018889,2]
[378765249,1755007838460,-151.0,0.00018889,2]
[378765250,1755007838469,-151.0,0.00018889,2]
[378765251,1755007838479,-151.0,0.00018889,2]
[378765252,1755007838488,-151.0,0.00018889,2]
[378765253,1755007838497,-151.0,0.00018889,2]
[378765254,1755007838506,-151.0,0.00018889,2]
[378765255,1755007838516,-151.0,0.00018889,2]
[378765256,1755007838525,-151.0,0.00018889,2]
[378765257,1755007838534,-151.0,0.00018889,2]
[378765258,1755007838543,-151.0,0.00018889,2]
[378765259,1755007838552,-151.0,0.00018889,2]
[378765260,1755007838562,-151.0,0.00018889,2]
[378765261,1755007838571,-151.0,0.00018889,2]
[378765262,1755007838580,-151.0,0.00018889,2]
[378765263,1755007838590,-151.0,0.00018889,2]
[378765264,1755007838600,-151.0,0.00018889,2]
[378765265,1755007838610,-151.0,0.00018889,2]
[378765266,1755007838622,-36911.56166682,0.000189,2]
[378765267,1755007838633,-202.02482477,0.000189,2]
[378765268,1755007838643,-252.2,0.00018936,2]
[378765269,1755007838654,-12673.43806534,0.0001897,2]
[378765270,1755007838664,-160.0,0.00018971,2]
[378765271,1755007838673,-160.0,0.00018971,2]
[378765272,1755007838683,-843.25559725,0.00018971,2]
[378765273,1755007838692,-417.15472785,0.00018971,2]
[378765274,1755007838701,-461.76100612,0.00018971,2]
[378765275,1755007838711,-160.0,0.00018971,2]
[378765276,1755007838720,-160.0,0.00018971,2]
[378765277,1755007838729,-232.0176383,0.00018971,2]
[378765278,1755007838739,-216.70963917,0.00018971,2]
[378765279,1755007838748,-160.0,0.00018971,2]
[378765280,1755007838758,-160.0,0.00018971,2]
[378765281,1755007838767,-160.0,0.00018971,2]
[378765282,1755007838777,-160.0,0.00018971,2]
[378765283,1755007838786,-528.03329096,0.00018971,2]
[378765284,1755007838796,-215.52532928,0.00018971,2]
[378765285,1755007838805,-500.0,0.00018973,2]
[378765286,1755007838814,-500.0,0.00018973,2]
[378765287,1755007838824,-500.0,0.00018973,2]
[378765288,1755007838833,-500.0,0.00018973,2]
[378765289,1755007838843,-543.59259108,0.00018973,2]
[378765290,1755007838853,-412.0,0.00018981,2]
[378765291,1755007838862,-151.0,0.00018988,2]
[378765292,1755007838872,-1162.0,0.00018988,2]
[378765293,1755007838881,-1844.0,0.00018988,2]
[378765294,1755007838890,-151.0,0.00018988,2]
[378765295,1755007838900,-205.99700286,0.00018988,2]
[378765296,1755007838909,-500.0,0.00018988,2]
[378765297,1755007838918,-500.0,0.00018989,2]
[378765298,1755007838927,-500.0,0.00018989,2]
[378765299,1755007838937,-500.0,0.00018989,2]
[378765300,1755007838947,-500.0,0.00018989,2]
[378765301,1755007838956,-151.0,0.00018989,2]
[378765302,1755007838965,-500.0,0.00018989,2]
[378765303,1755007838975,-500.0,0.00018989,2]
[378765304,1755007838985,-500.0,0.00018989,2]
[378765305,1755007838994,-500.0,0.00018989,2]
[378765306,1755007839004,-500.0,0.00018989,2]
[378765307,1755007839013,-500.0,0.00018989,2]
[378765308,1755007839023,-500.0,0.00018989,2]
[378765309,1755007839033,-500.0,0.00018989,2]
[378765310,1755007839043,-500.0,0.00018989,2]
[378765311,1755007839053,-500.0,0.00018989,2]
[378765312,1755007839063,-500.0,0.00018989,2]
[378765313,1755007839072,-500.0,0.00018989,2]
[378765314,1755007839081,-500.0,0.00018989,2]
[378765315,1755007839091,-17842.522448,0.00018989,2]
[378765316,1755007839100,-151.0,0.00018989,2]
[378765317,1755007839109,-151.0,0.00018989,2]
[378765318,1755007839120,-151.0,0.00018989,2]
[378765319,1755007839129,-151.0,0.00018989,2]
[378765320,1755007839138,-151.0,0.00018989,2]
[378765321,1755007839147,-151.0,0.00018989,2]
[378765322,1755007839157,-151.0,0.00018989,2]
[378765323,1755007839167,-151.0,0.00018989,2]
[378765324,1755007839176,-151.0,0.00018989,2]
[378765325,1755007839185,-151.0,0.00018989,2]
[378765326,1755007839194,-151.0,0.00018989,2]
[378765327,1755007839204,-151.0,0.00018989,2]